bitfinex/quotes_ETHUSD_20220111
["timestamp","ask_amount","ask_price","bid_price","bid_amount"]
[1641925203859,8.42e-05,3243.7,3243.6,8.66747]
[1641925204062,0.06,3244.7,3244.5,1.13158752]
[1641925204259,0.06,3244.7,3244.6,0.07704]
[1641925205266,0.06,3244.7,3244.5,1.21727]
[1641925205267,0.06,3244.7,3244.5,2.21727]
[1641925205467,1.0,3245.2,3244.6,2.74120326]
[1641925205666,1.0,3245.2,3245.0,0.84420211]
[1641925205964,1.0,3245.2,3244.7,1.07703]
[1641925205965,1.0,3245.2,3245.1,0.77026]
[1641925206165,1.0,3245.2,3244.9,1.54052]
[1641925206366,1.0,3245.2,3244.9,2.00940119]
[1641925206367,1.01023162,3245.2,3244.9,2.00940119]
[1641925207011,0.01658,3246.1,3245.3,2.31003]
[1641925207209,2.609052,3246.2,3245.4,0.52402]
[1641925207513,0.00454739,3246.0,3245.5,0.447]
[1641925207707,0.00454739,3246.0,3245.6,0.07702]
[1641925207909,0.00397897,3245.9,3245.8,6.42830567]
[1641925208112,0.00397897,3245.9,3245.8,2.98698]
[1641925208314,0.00397897,3245.9,3245.3,1.07702]
[1641925208511,0.00397897,3245.9,3245.1,0.447]
[1641925208512,0.00397897,3245.9,3245.2,2.81822326]
[1641925208711,0.00341054,3245.8,3245.3,1.0]
[1641925209111,0.00284212,3245.7,3245.3,1.05655122]
[1641925209315,0.00284212,3245.7,3245.4,0.07702]
[1641925209511,6.11,3246.1,3245.6,7.22015]
[1641925209714,2.609052,3246.2,3245.7,19.27994]
[1641925209916,0.03,3246.4,3245.8,9.19120326]
[1641925210122,0.9786488,3246.5,3245.9,1.524]
[1641925210312,0.00113685,3246.3,3246.0,0.93096971]
[1641925210513,0.00113685,3246.3,3246.1,0.447]
[1641925210753,0.96980899,3246.5,3246.3,5.6]
[1641925210954,0.91980899,3246.5,3246.3,6.047]
[1641925211957,0.91980899,3246.5,3246.3,0.447]
[1641925212159,0.91980899,3246.5,3246.0,1.0]
[1641925212361,0.91980899,3246.5,3245.9,0.00113684]
[1641925212559,0.91980899,3246.5,3246.1,0.00113684]
[1641925212560,0.01655,3246.4,3246.1,0.00113684]
[1641925212764,0.77028,3246.3,3245.9,0.00227369]
[1641925212960,1.03533535,3245.5,3245.1,0.00682108]
[1641925213560,1.03533535,3245.5,3245.0,0.0073895]
[1641925213763,0.77046,3245.4,3245.0,0.0073895]
[1641925214161,0.54161507,3245.2,3245.0,0.0073895]
[1641925215410,3.45,3245.1,3244.9,0.1270895]
[1641925215606,3.75,3245.1,3244.9,0.1270895]
[1641925216611,3.75,3245.1,3244.7,0.03]
[1641925217007,3.45,3245.1,3244.8,0.00113685]
[1641925217510,2.98116682,3244.9,3244.8,0.00113685]
[1641925217708,0.63116682,3244.9,3244.8,0.00113685]
[1641925217909,3.28116682,3244.9,3244.8,0.00113685]
[1641925218559,0.63116682,3244.9,3244.8,0.00113685]
[1641925219460,0.63116682,3244.9,3244.3,0.31113685]
[1641925219756,0.63116682,3244.9,3244.4,0.0793137]
[1641925219961,0.62965613,3244.9,3244.4,0.0793137]
[1641925220158,0.62965613,3244.9,3244.5,0.00170527]
[1641925221759,0.7705366,3245.1,3244.5,0.00170527]
[1641925222000,0.91987456,3244.8,3244.5,0.00170527]
[1641925222201,0.00113685,3245.0,3244.5,0.00170527]
[1641925222606,0.00170527,3245.1,3244.5,0.00170527]
[1641925223406,0.93313955,3244.9,3244.5,0.00170527]
[1641925225310,0.01828527,3245.1,3244.5,0.00170527]
[1641925225511,0.00170527,3245.1,3244.5,0.00170527]
[1641925226353,0.00170527,3245.1,3244.7,1.83570016]
[1641925226552,0.00170527,3245.1,3244.8,2.62285288]
[1641925227052,0.00170527,3245.1,3244.5,2.91604576]
[1641925227257,0.00170527,3245.1,3244.5,3.91604576]
[1641925227451,0.00170527,3245.1,3244.6,0.00113685]
[1641925227853,0.00170527,3245.1,3244.8,1.54048]
[1641925228556,0.00170527,3245.1,3244.9,0.07703]
[1641925228754,0.00170527,3245.1,3244.7,0.07703]
[1641925228953,0.87976436,3245.3,3244.8,3.3]
[1641925229155,0.87976436,3245.3,3244.8,3.30170527]
[1641925229398,0.49594041,3245.4,3244.9,0.00113685]
[1641925229803,0.00113685,3245.3,3244.9,0.00113685]
[1641925231103,0.00113685,3245.3,3244.8,0.00170527]
[1641925231603,0.00113685,3245.3,3244.4,1.54069]
[1641925231604,0.00113685,3245.3,3244.7,0.0793037]
[1641925231807,0.00113685,3245.3,3244.7,0.0022737]
[1641925231808,0.01658,3245.2,3244.7,0.0022737]
[1641925232108,0.01658,3245.2,3244.4,0.00397897]
[1641925232704,0.01658,3245.2,3243.9,0.00682108]
[1641925233005,0.62296919,3244.4,3244.0,0.07704]
[1641925233249,0.01658,3245.2,3244.0,0.84759]
[1641925233250,0.77055,3245.0,3244.0,0.84759]
[1641925233454,0.77055,3245.0,3244.1,0.00568424]
[1641925233647,0.77055,3245.0,3244.2,0.07704]
[1641925233852,1.5411,3245.0,3244.2,0.07704]
[1641925234051,2.311644,3245.0,3244.3,0.00454739]
[1641925234451,1.10523293,3244.9,3244.3,0.00454739]
[1641925234652,0.06055339,3244.7,3243.9,0.00682108]
[1641925234853,1.38380733,3244.8,3243.9,0.00682108]
[1641925234854,0.66561681,3244.8,3243.9,0.00682108]
[1641925235055,0.62981733,3244.8,3243.9,0.00682108]
[1641925235252,0.0353621,3244.5,3243.9,0.00682108]
[1641925235453,0.01658,3244.4,3243.8,0.00738951]
[1641925235651,1.12069571,3244.3,3243.8,0.00738951]
[1641925237212,1.89138381,3244.3,3243.8,0.00738951]
[1641925237415,0.80432617,3244.4,3243.8,0.00738951]
[1641925237615,0.88809191,3244.3,3243.6,0.00852635]
[1641925237814,0.55077785,3243.7,3243.6,0.00852635]
[1641925238418,0.55077785,3243.7,3243.5,0.00909478]
[1641925239223,1.32156785,3243.7,3243.5,0.00909478]
[1641925239619,1.32156785,3243.7,3243.2,1.55607821]
[1641925239620,1.32156785,3243.7,3243.3,0.01023162]
[1641925239820,0.04931169,3243.6,3243.3,0.01023162]
[1641925240021,0.56735785,3243.7,3243.3,1.56630983]
[1641925240221,0.77085,3243.6,3243.3,1.56630983]
[1641925240420,1.5417,3243.6,3243.4,0.0096632]
[1641925240654,0.55077785,3243.7,3243.4,0.0096632]
[1641925240849,0.56735785,3243.7,3243.4,0.0096632]
[1641925241856,1.33815785,3243.7,3243.0,0.01193689]
[1641925242858,1.33815785,3243.7,3243.0,1.5680151]
[1641925243058,1.32157785,3243.7,3243.0,1.5680151]
[1641925243259,1.32157785,3243.7,3243.1,0.01136847]
[1641925244158,1.27157785,3243.7,3243.1,0.01136847]
[1641925244406,0.787379,3243.8,3243.2,0.77074]
[1641925244407,0.01658,3243.8,3243.2,0.77074]
[1641925244610,3.7864,3244.2,3243.6,1.54118]
[1641925244812,3.7864,3244.2,3243.7,0.07706]
[1641925245010,3.7864,3244.2,3243.7,0.08501793]
[1641925245211,3.7864,3244.2,3243.8,0.00738951]
[1641925245613,3.7864,3244.2,3243.9,0.84765]
[1641925245812,3.835,3244.6,3244.0,4.27181068]
[1641925246012,0.529,3244.7,3244.1,0.07704]
[1641925246212,0.529,3244.7,3243.7,2.93832853]
[1641925246416,0.529,3244.7,3244.1,0.07705]
[1641925246613,0.00284212,3244.6,3244.5,7.0461991]
[1641925246815,0.00284212,3244.6,3244.5,9.94463676]
[1641925247015,0.00284212,3244.6,3244.5,10.94463676]
[1641925247414,0.529,3244.7,3244.6,6.45]
[1641925247612,0.529,3244.7,3244.6,9.48097778]
[1641925247814,0.529,3244.7,3244.6,10.48097778]
[1641925248458,0.529,3244.7,3244.6,6.52703]
[1641925248660,0.529,3244.7,3244.6,9.19262495]
[1641925249664,0.529,3244.7,3244.6,27.33262495]
[1641925249863,0.529,3244.7,3244.6,29.9562953]
[1641925250464,0.529,3244.7,3244.6,11.8162953]
[1641925250664,0.529,3244.7,3244.6,9.15070035]
[1641925250864,0.2745,3244.7,3244.6,11.74216265]
[1641925251064,0.2745,3244.7,3244.6,15.67865348]
[1641925252409,0.2745,3244.7,3244.6,11.74216265]
[1641925252613,0.2745,3244.7,3244.6,12.74216265]
[1641925252811,0.2745,3244.7,3244.6,11.74216265]
[1641925253012,0.2745,3244.7,3244.6,12.74216265]
[1641925253214,0.2745,3244.7,3244.6,10.15070035]
[1641925253412,0.2745,3244.7,3244.6,12.73820827]
[1641925253912,0.2745,3244.7,3244.6,11.73820827]
[1641925254317,0.2745,3244.7,3244.6,11.75974933]
[1641925254717,0.2745,3244.7,3244.6,9.15070035]
[1641925255121,0.2745,3244.7,3244.6,10.15070035]
[1641925255760,3.8204,3245.7,3244.9,0.61613]
[1641925255959,3.8204,3245.7,3245.1,0.77028]
[1641925256164,0.00568424,3245.6,3245.1,0.77028]
[1641925256567,0.00511581,3245.5,3245.1,0.77028]
[1641925256871,0.00454739,3245.4,3245.1,0.77028]
[1641925257265,0.00397897,3245.3,3245.1,0.77028]
[1641925257673,3.8204,3245.7,3245.1,0.77028]
[1641925257674,0.00341054,3245.2,3245.1,0.77028]
[1641925258266,0.00341054,3245.2,3245.1,3.53150622]
[1641925258464,0.00341054,3245.2,3245.1,4.97028]
[1641925259264,0.00341054,3245.2,3245.1,5.0473]
[1641925259523,0.00341054,3245.2,3245.1,7.2973]
[1641925260119,0.00341054,3245.2,3245.1,9.8541567]
[1641925260321,0.00341054,3245.2,3245.1,7.2973]
[1641925260518,0.00341054,3245.2,3245.1,5.0473]
[1641925261321,0.00341054,3245.2,3245.1,4.97028]
[1641925261526,0.00341054,3245.2,3245.1,0.77028]
[1641925261722,0.00341054,3245.2,3245.0,0.3104]
[1641925262129,0.00284212,3245.1,3244.8,0.77038]
[1641925262321,0.00284212,3245.1,3244.7,1.54068]
[1641925262523,0.07703,3245.3,3244.7,1.54068]
[1641925262524,0.0022737,3245.0,3244.8,1.12876571]
[1641925262724,0.0022737,3245.0,3244.7,1.54068]
[1641925262924,0.00170527,3244.9,3244.7,1.54068]
[1641925263351,0.07703,3245.7,3244.7,1.54068]
[1641925263352,0.00113685,3244.8,3244.7,1.54068]
[1641925263550,0.00113685,3244.8,3244.7,7.99068]
[1641925263954,0.00113685,3244.8,3244.7,10.10622239]
[1641925264954,0.00113685,3244.8,3244.7,8.99068]
[1641925265761,0.00113685,3244.8,3244.7,11.57414114]
[1641925266158,0.00113685,3244.8,3244.7,9.88937388]
[1641925266359,0.00113685,3244.8,3244.7,8.88937388]
[1641925266761,0.00113685,3244.8,3244.7,1.54068]
[1641925267004,0.00113685,3244.8,3244.6,0.77033]
[1641925267207,0.00113685,3244.8,3244.4,0.77049]
[1641925269510,0.00113685,3244.8,3244.5,0.07704]
[1641925269712,0.00113685,3244.8,3244.4,0.77049]
[1641925271160,0.53039378,3244.8,3244.4,0.77049]
[1641925271656,0.53039378,3244.8,3244.2,1.61793]
[1641925271855,0.53039378,3244.8,3244.2,1.5409]
[1641925272055,0.53039378,3244.8,3244.3,0.00170527]
[1641925272465,0.53039378,3244.8,3244.4,0.7705]
[1641925272857,1.30093378,3244.8,3244.4,0.7705]
[1641925273060,0.00113685,3244.8,3244.5,2.6138162]
[1641925273463,0.00113685,3244.8,3244.6,0.7703]
[1641925273663,0.00113685,3244.8,3244.7,9.40954211]
[1641925274060,0.00113685,3244.8,3244.7,11.38456097]
[1641925274261,4.26746699,3246.2,3244.8,6.52703]
[1641925274262,6.6398,3246.2,3244.8,6.52703]
[1641925274508,6.6398,3246.2,3245.4,0.77013]
[1641925274708,0.00625266,3245.9,3245.5,0.07702]
[1641925275116,1.99330899,3246.5,3245.4,20.9132951]
[1641925275311,1.94330899,3246.5,3246.4,0.89150403]
[1641925276110,1.94330899,3246.5,3246.4,0.07699]
[1641925276308,1.94330899,3246.5,3246.3,1.53966]
[1641925276711,1.94330899,3246.5,3246.4,0.07699]
[1641925276909,1.94330899,3246.5,3245.8,0.447]
[1641925276910,1.94330899,3246.5,3246.1,0.77009]
[1641925277118,1.94728796,3246.5,3245.8,0.07699]
[1641925277309,1.94728796,3246.5,3246.1,1.54003]
[1641925278171,1.94728796,3246.5,3245.7,0.077]
[1641925278172,0.53830462,3246.3,3245.9,0.77013]
[1641925278556,0.0022737,3246.2,3245.9,0.77013]
[1641925278855,0.00170527,3246.1,3245.9,0.77013]
[1641925279255,0.00113685,3246.0,3245.9,4.17013]
[1641925279662,0.00113685,3246.0,3245.9,0.77013]
[1641925279860,0.00113685,3246.0,3245.5,0.00170527]
[1641925280459,0.00113685,3246.0,3245.4,0.00227369]
[1641925280661,0.62590711,3245.9,3245.3,0.00284211]
[1641925281060,0.62590711,3245.9,3245.2,0.00341054]
[1641925281359,1.39616711,3245.9,3245.2,1.54043]
[1641925281559,2.16640711,3245.9,3245.2,1.54043]
[1641925281903,1.14064844,3245.8,3245.3,0.00284211]
[1641925282305,0.7703292,3245.7,3245.3,0.00284211]
[1641925282509,0.7703292,3245.7,3245.1,0.00397896]
[1641925282510,0.05668703,3245.5,3245.1,0.00397896]
[1641925282707,0.81046495,3245.4,3245.1,0.00397896]
[1641925282912,0.07702,3245.3,3245.1,0.00397896]
[1641925283507,0.07702,3245.3,3244.4,1.06110318]
[1641925283508,0.07702,3245.3,3244.8,0.77037]
[1641925283709,0.84753,3245.4,3244.8,0.77037]
[1641925283908,0.84753,3245.4,3244.9,0.00511581]
[1641925284109,0.07703,3245.4,3244.9,0.00511581]
[1641925284311,3.8836,3245.3,3244.5,0.0073895]
[1641925284509,3.8836,3245.3,3244.3,0.00852635]
[1641925284711,3.8836,3245.3,3244.7,0.77042]
[1641925284912,0.3,3245.2,3244.7,0.77042]
[1641925285113,0.3,3245.2,3244.8,0.00568423]
[1641925285114,1.07043,3245.2,3244.8,0.00568423]
[1641925286156,0.3,3245.2,3244.9,0.77037]
[1641925286655,0.07702,3245.5,3245.0,0.00454738]
[1641925286856,3.09792,3245.6,3245.0,0.00454738]
[1641925287055,0.07702,3245.6,3244.9,0.00511581]
[1641925287655,0.77035,3245.5,3245.1,0.77032]
[1641925287859,0.77035,3245.5,3244.9,0.00511581]
[1641925287860,0.80732911,3245.5,3244.9,0.00511581]
[1641925288060,0.07702,3245.7,3245.2,0.00341054]
[1641925288258,1.6500292,3245.7,3245.0,2.62337988]
[1641925288457,1.9500292,3245.7,3245.0,2.62337988]
[1641925288657,1.9500292,3245.7,3245.1,0.00397896]
[1641925288959,1.5407825,3245.4,3245.1,0.00397896]
[1641925289156,0.37702,3245.3,3245.1,0.00397896]
[1641925289403,1.9180406,3245.3,3245.1,0.00397896]
[1641925289608,1.95461852,3245.3,3245.1,0.00397896]
[1641925290510,0.7704893,3245.1,3244.6,0.00682108]
[1641925290718,2.31149,3245.0,3244.5,0.0073895]
[1641925290910,1.541,3245.0,3244.5,0.0073895]
[1641925291112,0.7705,3244.9,3244.5,0.0073895]
[1641925291313,0.84753,3244.9,3244.5,0.0073895]
[1641925291512,0.84753,3244.9,3244.4,0.00795793]
[1641925291716,0.84753,3244.9,3244.3,0.00852635]
[1641925291717,0.07703,3244.9,3244.3,0.00852635]
[1641925292115,0.8475423,3244.9,3244.6,2.62375874]
[1641925292514,0.8475423,3244.9,3244.7,0.00625266]
[1641925292515,0.77053,3244.8,3244.7,0.00625266]
[1641925292914,1.07053,3244.8,3244.7,0.00625266]
[1641925293757,1.07053,3244.8,3244.7,2.62375874]
[1641925294156,0.77053,3244.8,3244.7,2.6300114]
[1641925294561,0.77053,3244.8,3244.7,0.00625266]
[1641925295563,1.07053,3244.8,3244.7,0.00625266]
[1641925295868,1.59962629,3244.8,3244.7,2.63005464]
[1641925296068,1.59962629,3244.8,3244.1,0.03]
[1641925296069,0.7706587,3244.5,3244.1,0.03]
[1641925296367,0.7706587,3244.5,3244.2,0.00284211]
[1641925296368,0.35320488,3244.4,3244.2,0.00284211]
[1641925296564,0.07704,3244.3,3244.2,0.00284211]
[1641925296764,0.3,3244.3,3244.2,0.00284211]
[1641925297013,0.67704,3244.4,3244.2,0.00284211]
[1641925297612,1.44776,3244.4,3244.2,0.00284211]
[1641925298312,1.37072,3244.4,3244.2,0.00284211]
[1641925299619,2.91207,3244.4,3244.2,0.00284211]
[1641925305720,2.14339601,3244.7,3244.2,0.00284211]
[1641925306120,3.14339601,3244.7,3244.2,0.00284211]
[1641925306522,0.7706587,3244.5,3244.2,0.00284211]
[1641925306821,0.8009649,3244.5,3244.2,0.00284211]
[1641925307026,2.31207,3244.4,3244.2,0.00284211]
[1641925307226,0.3,3244.3,3244.2,0.00284211]
[1641925308464,0.25,3244.3,3244.2,0.00284211]
[1641925312211,1.54138,3244.4,3244.2,0.00284211]
[1641925312415,0.03,3244.8,3244.2,0.00284211]
[1641925313215,0.03,3244.8,3244.2,1.66939895]
[1641925313614,0.03,3244.8,3244.3,0.00227369]
[1641925314218,0.45933674,3244.7,3244.3,0.00227369]
[1641925314415,0.45933674,3244.7,3244.5,0.77043]
[1641925314617,0.45933674,3244.7,3244.3,1.54313369]
[1641925315116,1.22985674,3244.7,3244.4,0.00170527]
[1641925315520,0.3,3244.6,3244.4,0.00170527]
[1641925315761,1.22985674,3244.7,3244.4,0.00170527]
[1641925316360,1.22985674,3244.7,3244.4,3.39595748]
[1641925316762,1.22985674,3244.7,3244.5,0.00113684]
[1641925317566,1.22985674,3244.7,3244.5,2.62489905]
[1641925317770,0.3,3244.6,3244.5,2.62489905]
[1641925319271,1.22985674,3244.7,3244.5,2.62489905]
[1641925319526,7.05,3244.6,3244.1,0.03]
[1641925319726,0.77072,3244.4,3244.1,0.03]
[1641925319927,4.51667,3244.3,3244.2,0.00170527]
[1641925320126,0.30271037,3244.3,3244.2,0.00170527]
[1641925320326,6.45,3244.2,3243.8,0.07704]
[1641925320528,1.0,3244.1,3243.8,0.07704]
[1641925320727,1.0,3244.1,3242.8,6.39505444]
[1641925320728,1.770792,3244.1,3243.9,0.00170527]
[1641925320927,2.070792,3244.1,3243.9,0.00170527]
[1641925321127,0.3,3244.0,3243.3,0.00511581]
[1641925321327,0.7708,3243.6,3243.3,0.00511581]
[1641925321527,1.3708,3243.6,3243.3,0.00511581]
[1641925321727,1.3708,3243.6,3243.2,0.00568424]
[1641925321934,1.0708,3243.6,3243.2,0.77648424]
[1641925322133,1.3708,3243.6,3243.2,0.77648424]
[1641925322330,0.77081,3243.6,3243.3,0.00511581]
[1641925322529,1.37081,3243.6,3243.3,0.00511581]
[1641925322731,1.07081,3243.6,3243.3,0.00511581]
[1641925323173,3.65,3244.2,3243.4,0.77075]
[1641925323369,2.65,3244.2,3243.4,0.77075]
[1641925323566,2.65,3244.2,3243.5,0.00397897]
[1641925323965,2.65,3244.2,3243.6,0.07706]
[1641925324168,0.47093729,3244.3,3243.6,0.07706]
[1641925324367,0.47093729,3244.3,3244.0,0.77052]
[1641925324870,0.47093729,3244.3,3244.0,0.84758]
[1641925325070,0.00227369,3244.6,3244.0,0.84758]
[1641925325475,0.00170527,3244.5,3244.0,0.84758]
[1641925325876,0.00113684,3244.4,3244.0,0.84758]
[1641925326276,0.33,3244.8,3244.0,0.84758]
[1641925326277,0.30284211,3244.7,3244.0,0.84758]
[1641925327523,0.5914347,3244.5,3244.0,0.77052]
[1641925327724,0.30284211,3244.7,3244.0,0.77052]
[1641925327923,0.00113684,3244.4,3244.0,0.77052]
[1641925328926,0.00113684,3244.4,3244.2,1.06340977]
[1641925329226,0.00113684,3244.4,3244.3,7.2204]
[1641925329632,0.00113684,3244.4,3244.3,8.2204]
[1641925330128,0.00113684,3244.4,3244.3,7.2204]
[1641925330527,0.00113684,3244.4,3244.3,0.7704]
[1641925330769,0.00113684,3244.4,3244.3,3.7704]
[1641925330969,0.00113684,3244.4,3244.3,0.7704]
[1641925335125,0.00113684,3244.4,3244.1,0.77059]
[1641925339672,0.00113684,3244.4,3244.2,2.62405454]
[1641925342617,0.00113684,3244.4,3244.3,6.47056]
[1641925342823,0.00113684,3244.4,3244.3,6.5476]
[1641925343017,0.03,3244.8,3244.4,6.45]
[1641925343218,0.03,3244.8,3244.5,0.447]
[1641925343421,0.00170527,3244.7,3244.5,0.447]
[1641925343623,0.00170527,3244.7,3244.5,1.21728]
[1641925343921,0.00113685,3244.6,3244.5,1.21728]
[1641925344320,0.00113685,3244.6,3244.5,3.39433454]
[1641925344723,0.00113685,3244.6,3244.5,4.39433454]
[1641925344927,0.00113685,3244.6,3244.5,3.39433454]
[1641925345123,0.00113685,3244.6,3244.5,4.47137454]
[1641925345520,0.00113685,3244.6,3244.5,7.97137454]
[1641925345971,0.00113685,3244.6,3244.5,6.97137454]
[1641925346970,0.03,3244.8,3244.6,5.65]
[1641925347170,0.03,3244.8,3244.7,0.07703]
[1641925347575,0.03113685,3244.8,3244.7,5.22703]
[1641925347772,0.03113685,3244.8,3244.7,5.15]
[1641925347971,0.03113685,3244.8,3244.6,0.07703]
[1641925348370,0.03113685,3244.8,3244.6,2.5897583]
[1641925348571,0.03113685,3244.8,3244.7,1.0]
[1641925348771,0.03113685,3244.8,3244.7,2.62405454]
[1641925349417,0.03113685,3244.8,3244.6,3.62405454]
[1641925349623,0.03113685,3244.8,3244.6,2.62405454]
[1641925349823,0.03113685,3244.8,3244.6,2.70109454]
[1641925350231,0.03113685,3244.8,3244.7,2.62405454]
[1641925351125,0.03113685,3244.8,3244.6,2.62405454]
[1641925359725,1.57228685,3244.8,3244.6,2.62405454]
[1641925360124,1.57228685,3244.8,3244.6,5.454e-05]
[1641925360125,2.57228685,3244.8,3244.6,5.454e-05]
[1641925360530,4.11357455,3244.8,3244.6,5.454e-05]
[1641925360778,4.15182699,3244.8,3244.6,5.454e-05]
[1641925361174,3.15182699,3244.8,3244.6,5.454e-05]
[1641925361375,6.8,3244.7,3244.0,1.55607821]
[1641925361576,6.8,3244.7,3243.6,0.7707]
[1641925361577,0.58180828,3244.1,3243.8,1.55607821]
[1641925361975,1.18180828,3244.1,3243.8,1.55607821]
[1641925362679,1.57433496,3244.6,3243.8,1.55607821]
[1641925362680,1.9245849,3245.1,3243.9,0.07706]
[1641925362879,0.77049,3245.0,3243.9,0.07706]
[1641925363080,5.6,3244.9,3244.0,0.00341054]
[1641925363277,5.6,3244.9,3244.1,0.07704]
[1641925363479,5.6,3244.9,3244.2,1.55607821]
[1641925363778,0.87769132,3244.7,3244.3,0.00170527]
[1641925364178,0.57769132,3244.7,3244.3,0.00170527]
[1641925364416,0.57769132,3244.7,3244.3,0.77216527]
[1641925364622,5.0,3244.9,3244.3,0.77216527]
[1641925364824,5.3,3244.9,3244.4,0.07817685]
[1641925365023,5.0,3244.9,3244.4,0.07817685]
[1641925365223,5.3,3244.9,3244.4,0.07817685]
[1641925365729,6.21546963,3244.9,3244.5,0.77044]
[1641925366725,0.80163685,3244.8,3244.5,0.77044]
[1641925369001,1.57217685,3244.8,3244.4,0.00113685]
[1641925369199,0.77055,3244.7,3244.4,0.00113685]
[1641925369401,0.3,3244.6,3244.4,0.00113685]
[1641925371502,1.03113685,3244.8,3244.4,0.77032]
[1641925371705,1.03113685,3244.8,3244.1,1.55607821]
[1641925371921,0.00170527,3244.7,3244.1,1.55607821]
[1641925372120,0.00170527,3244.7,3244.2,0.00113684]
[1641925372323,0.00113685,3244.6,3244.2,0.00113684]
[1641925372723,1.54141,3244.4,3244.2,0.00113684]
[1641925372924,2.612119,3244.4,3244.2,0.00113684]
[1641925373123,3.2214521,3244.3,3244.2,0.00113684]
[1641925373326,3.2214521,3244.3,3244.1,0.00170527]
[1641925373725,3.9921221,3244.3,3244.1,0.00170527]
[1641925373924,0.3,3244.2,3244.1,0.00170527]
[1641925375970,0.24759289,3244.2,3244.1,0.00170527]
[1641925377976,0.23812075,3244.2,3244.1,0.00170527]
[1641925379820,0.23812075,3244.2,3243.9,0.00284211]
[1641925380021,0.23812075,3244.2,3243.8,0.52351211]
[1641925380220,0.00113684,3244.1,3243.8,0.52351211]
[1641925380822,0.00113684,3244.1,3243.9,2.62422619]
[1641925381624,0.30113684,3244.1,3243.9,2.62422619]
[1641925382424,0.00113684,3244.1,3243.9,2.62422619]
[1641925382724,1.12258894,3244.3,3244.0,0.77062]
[1641925382926,2.66387814,3244.3,3243.9,2.62422619]
[1641925383579,2.66387814,3244.3,3244.1,2.62422619]
[1641925383984,1.07069,3244.2,3244.1,2.62422619]
[1641925384382,1.07069,3244.2,3243.7,2.62422619]
[1641925384582,0.3,3244.1,3243.7,2.62422619]
[1641925384881,0.7707,3244.0,3243.8,0.00170527]
[1641925385082,0.3,3243.9,3243.8,0.00170527]
[1641925402829,0.3,3243.9,3243.8,2.62593146]
[1641925405683,0.3,3243.9,3243.7,1.55607821]
[1641925405882,0.447,3243.8,3243.7,1.55607821]
[1641925406087,7.35192071,3243.8,3243.7,1.55607821]
[1641925406286,7.68962219,3243.8,3243.4,2.33452386]
[1641925406486,0.77097,3243.6,3243.4,2.33452386]
[1641925406685,0.77097,3243.6,3243.5,0.00170527]
[1641925407392,10.3181278,3243.6,3242.7,2.33452386]
[1641925407590,10.3181278,3243.6,3242.9,0.00341054]
[1641925407591,0.77111,3243.2,3242.9,0.00341054]
[1641925407789,0.447,3243.1,3242.2,0.3104]
[1641925407990,0.07709,3243.0,3242.2,0.3104]
[1641925408189,0.447,3242.9,3242.3,0.00341054]
[1641925408387,0.07709,3242.8,3242.3,0.00341054]
[1641925408587,0.447,3242.7,3242.3,0.00341054]
[1641925408792,2.3137273,3242.5,3242.3,0.00341054]
[1641925408991,2.94935008,3242.5,3242.3,0.00341054]
[1641925409190,2.94935008,3242.5,3241.5,11.36411819]
[1641925409191,5.0771,3242.4,3241.5,11.36411819]
[1641925409430,11.2461,3242.4,3241.5,1.0]
[1641925409626,0.4968305,3241.7,3241.2,0.00062685]
[1641925409826,0.7712899,3241.5,3241.2,0.00062685]
[1641925410032,0.3,3241.4,3241.2,0.00062685]
[1641925410225,0.3,3241.4,3241.3,1.0]
[1641925411026,0.3,3241.4,3241.3,0.938]
[1641925411227,0.7718381,3241.4,3241.3,0.938]
[1641925411627,0.7718381,3241.4,3241.1,1.54245]
[1641925412031,0.77135,3241.6,3241.2,0.00511581]
[1641925412231,0.80139624,3241.6,3241.2,0.00511581]
[1641925412429,0.77132,3241.4,3240.9,0.00682108]
[1641925412637,1.5427782,3241.3,3240.9,0.00682108]
[1641925412829,1.58048997,3241.3,3240.9,0.00682108]
[1641925413029,1.2311157,3241.1,3240.9,0.00682108]
[1641925413272,1.56663871,3241.1,3240.9,0.00682108]
[1641925413472,0.3,3241.0,3240.9,0.00682108]
[1641925413877,0.3,3241.0,3240.8,0.77139]
[1641925414075,0.3,3241.0,3240.9,0.00682108]
[1641925415292,0.37713,3241.0,3240.9,0.00682108]
[1641925415477,0.3,3241.0,3240.5,0.00909477]
[1641925415676,0.3,3241.0,3240.6,0.00852635]
[1641925415875,0.3,3241.0,3240.5,0.00909477]
[1641925416078,0.07713,3241.3,3240.6,2.51243912]
[1641925416278,1.5425067,3242.0,3241.1,1.49819187]
[1641925416482,1.5425067,3242.0,3241.0,4.00000732]
[1641925416483,0.07711,3241.9,3241.0,4.00000732]
[1641925416679,0.07711,3241.9,3241.3,0.77125]
[1641925416680,0.59840169,3241.9,3241.3,0.77125]
[1641925417128,0.80407656,3241.7,3241.4,0.00397896]
[1641925417329,1.18118656,3241.7,3241.4,0.00397896]
[1641925417529,0.3,3241.7,3241.4,2.5253493]
[1641925417729,0.07711,3242.1,3241.5,0.7712]
[1641925417936,0.07823685,3242.3,3241.6,2.94089762]
[1641925418131,0.84935495,3242.3,3241.6,0.00284211]
[1641925418331,0.88849494,3242.3,3241.7,0.00227369]
[1641925418531,1.44864734,3242.3,3241.4,0.00397896]
[1641925418934,0.77115,3242.1,3241.4,0.00397896]
[1641925419133,0.80364483,3242.1,3241.7,1.54216]
[1641925419533,0.80364483,3242.1,3241.8,0.00170527]
[1641925419932,0.3,3242.0,3241.8,0.00170527]
[1641925420774,0.3771,3242.0,3241.5,0.00341054]
[1641925420973,0.77126,3241.7,3241.3,0.00454738]
[1641925421185,2.6474282,3241.6,3240.9,1.49819187]
[1641925421389,6.50075973,3241.5,3239.7,6.03618781]
[1641925421580,6.50075973,3241.5,3241.0,0.00170527]
[1641925421581,0.5022157,3241.4,3241.0,0.00170527]
[1641925421780,6.45,3241.2,3239.7,6.03618781]
[1641925421980,0.57357309,3241.1,3239.7,7.72765523]
[1641925422280,0.77162,3240.5,3239.9,1.00037866]
[1641925422580,0.37714,3240.4,3240.0,0.00568424]
[1641925423379,0.37714,3240.4,3240.0,0.51453423]
[1641925423782,0.37714,3240.4,3240.1,0.00511581]
[1641925424531,1.37163,3240.2,3240.1,0.00511581]
[1641925424730,1.43829863,3240.2,3239.8,0.00682108]
[1641925424930,0.7717573,3240.0,3239.6,0.00795793]
[1641925425132,0.07716,3239.9,3239.6,0.00795793]